bitfinex-derivatives/quotes_SOLF0:USTF0_20251006
["timestamp","ask_amount","ask_price","bid_price","bid_amount"]
[1759755450945,3.8436,234.09,234.03,3.56409611]
[1759755451148,117.04223707,234.14,234.03,3.56409611]
[1759755451341,117.04223707,234.14,234.04,11.04409611]
[1759755451737,117.04223707,234.14,234.06,3.56409611]
[1759755451943,117.04223707,234.14,234.06,11.04409611]
[1759755453550,3.8433,234.11,234.06,11.04409611]
[1759755453752,3.8433,234.11,234.07,7.48]
[1759755453948,3.8433,234.11,234.06,3.56409611]
[1759755454150,3.8433,234.11,234.07,7.48]
[1759755454354,3.8433,234.11,234.06,3.56409611]
[1759755454657,3.8433,234.11,234.07,7.44]
[1759755454853,3.8433,234.11,234.06,3.56409611]
[1759755455053,3.8433,234.11,234.07,7.44]
[1759755455458,3.8433,234.11,234.06,3.56409611]
[1759755455657,3.8433,234.11,234.07,7.44]
[1759755455858,3.8433,234.11,234.06,3.56409611]
[1759755456356,3.8433,234.11,234.07,7.44]
[1759755457163,12.68223707,234.14,234.08,3.56409611]
[1759755458665,16.52503707,234.14,234.08,3.56409611]
[1759755458863,14.11711231,234.14,234.08,11.00409611]
[1759755459163,14.11711231,234.14,234.08,7.44]
[1759755460263,10.27431231,234.14,234.08,7.44]
[1759755460464,3.843,234.13,234.08,7.44]
[1759755461766,3.8431,234.12,234.08,7.44]
[1759755463663,1.54182782,234.13,234.07,3.56409611]
[1759755463864,1.54182782,234.13,234.07,11.00409611]
[1759755465372,1.54182782,234.13,234.07,14.84779611]
[1759755466171,10.27431231,234.14,234.09,7.44]
[1759755467359,10.27431231,234.14,234.08,3.56409611]
[1759755467568,10.27431231,234.14,234.11,7.44]
[1759755467761,10.27431231,234.14,234.1,3.8432]
[1759755467963,10.27431231,234.14,234.11,7.5]
[1759755468166,10.27431231,234.14,234.1,3.8432]
[1759755468566,1.54182782,234.18,234.12,7.5]
[1759755471871,1.54182782,234.15,234.09,7.40749611]
[1759755472072,1.54182782,234.15,234.09,3.56409611]
[1759755472267,1.54182782,234.15,234.08,11.06409611]
[1759755472471,104.32,234.19,234.1,7.5]
[1759755472667,104.32,234.19,234.12,7.5]
[1759755472668,1.54182782,234.18,234.12,7.5]
[1759755476879,104.32,234.19,234.12,7.5]
[1759755479375,108.162,234.19,234.12,7.5]
[1759755479570,1.54182782,234.17,234.1,3.56409611]
[1759755479774,1.54182782,234.17,234.09,11.06409611]
[1759755480179,1.54182782,234.17,234.1,3.56409611]
[1759755480577,3.8423,234.16,234.1,3.56409611]
[1759755480777,1.54182782,234.17,234.1,3.56409611]
[1759755484074,1.54182782,234.17,234.11,7.5]
[1759755484475,104.32,234.19,234.11,11.06409611]
[1759755484680,104.32,234.19,234.12,7.5]
[1759755488286,104.32,234.19,234.12,11.343]
[1759755488782,104.32,234.19,234.12,3.843]
[1759755488987,104.32,234.19,234.13,7.5]
[1759755493288,1.54182782,234.22,234.15,7.5]
[1759755494591,1.54182782,234.23,234.17,7.5]
[1759755495286,1.54182782,234.23,234.15,3.56409611]
[1759755495491,1.54182782,234.2,234.14,3.56409611]
[1759755495890,1.54182782,234.23,234.15,7.5]
[1759755497592,3.8415,234.21,234.15,7.5]
[1759755498186,3.8411,234.24,234.15,7.5]
[1759755498389,1.54182782,234.22,234.15,11.06409611]
[1759755499594,1.54182782,234.22,234.16,7.87]
[1759755500094,1.54182782,234.22,234.16,11.7122]
[1759755500486,1.54182782,234.22,234.16,7.87]
[1759755500892,1.54182782,234.25,234.17,7.87]
[1759755502192,1.54182782,234.25,234.17,11.43409611]
[1759755502391,104.26,234.27,234.17,11.43409611]
[1759755502697,1.54182782,234.26,234.18,11.7119]
[1759755503195,104.26,234.27,234.18,11.7119]
[1759755503396,1.54182782,234.25,234.18,11.7119]
[1759755504698,1.54182782,234.25,234.18,7.87]
[1759755508000,3.8408,234.26,234.18,7.87]
[1759755508200,5.38262782,234.26,234.18,7.87]
[1759755509896,1.54182782,234.23,234.18,7.87]
[1759755510706,5.38312782,234.23,234.18,7.87]
[1759755510996,5.38312782,234.23,234.15,3.56409611]
[1759755511201,5.38312782,234.23,234.16,7.87]
[1759755513703,104.26,234.27,234.16,7.87]
[1759755513704,3.8409,234.25,234.16,7.87]
[1759755514004,1.54182782,234.24,234.16,7.87]
[1759755514712,1.54182782,234.24,234.16,11.7122]
[1759755515211,1.54182782,234.24,234.17,7.46]
[1759755516705,3.8413,234.23,234.17,7.46]
[1759755525206,3.8409,234.25,234.17,7.46]
[1759755526816,3.8411,234.24,234.17,7.46]
[1759755527720,3.8413,234.23,234.17,7.46]
[1759755530618,3.8413,234.23,234.17,11.02409611]
[1759755531319,104.26,234.27,234.18,7.58]
[1759755531819,3.8411,234.24,234.18,7.58]
[1759755532618,3.8407,234.26,234.18,7.58]
[1759755533624,3.8407,234.26,234.18,3.8419]
[1759755533817,3.8407,234.26,234.19,7.58]
[1759755536926,104.26,234.27,234.19,7.58]
[1759755538224,3.8412,234.24,234.18,3.56409611]
[1759755538420,104.26,234.27,234.19,7.58]
[1759755538930,3.8409,234.25,234.19,11.14409611]
[1759755539432,104.26,234.27,234.19,7.58]
[1759755540730,2.40705786,234.26,234.17,11.14409611]
[1759755541124,2.40705786,234.26,234.18,7.58]
[1759755541829,3.8413,234.23,234.17,3.56409611]
[1759755542030,3.8413,234.23,234.18,7.58]
[1759755542726,3.8413,234.23,234.17,3.56409611]
[1759755543832,3.8413,234.23,234.18,7.58]
[1759755544034,3.8415,234.21,234.18,7.58]
[1759755545937,3.8415,234.21,234.16,7.58]
[1759755546433,3.8415,234.21,234.15,3.56409611]
[1759755546737,3.8415,234.21,234.15,11.14409611]
[1759755547538,2.40705786,234.22,234.14,3.56409611]
[1759755547735,2.40705786,234.22,234.13,3.56409611]
[1759755548545,3.8422,234.18,234.13,3.56409611]
[1759755548740,104.14,234.17,234.14,7.58]
[1759755553540,104.14,234.17,234.13,7.58]
[1759755553943,104.14,234.17,234.12,3.56409611]
[1759755554645,104.14,234.17,234.12,7.40709611]
[1759755554847,2.40705786,234.23,234.13,7.58]
[1759755555045,104.14,234.18,234.12,7.40709611]
[1759755555841,104.14,234.18,234.13,7.58]
[1759755556039,104.14,234.18,234.12,11.14409611]
[1759755556445,104.14,234.18,234.12,3.56409611]
[1759755556641,104.14,234.18,234.12,7.40699611]
[1759755556841,104.14,234.18,234.14,7.58]
[1759755557046,104.14,234.18,234.13,3.56409611]
[1759755557247,104.14,234.18,234.14,7.58]
[1759755557945,104.14,234.18,234.13,3.56409611]
[1759755558346,104.14,234.18,234.14,7.7]
[1759755558646,104.14,234.18,234.12,7.40699611]
[1759755558848,104.14,234.18,234.13,7.7]
[1759755559048,104.14,234.18,234.12,7.40699611]
[1759755559249,104.14,234.18,234.13,3.56409611]
[1759755559450,104.14,234.18,234.14,7.7]
[1759755559653,104.14,234.18,234.13,3.56409611]
[1759755559846,104.14,234.18,234.14,7.7]
[1759755560442,104.14,234.18,234.13,7.40679611]
[1759755560846,104.14,234.18,234.14,7.7]
[1759755561046,104.14,234.18,234.13,7.40679611]
[1759755561649,104.14,234.18,234.14,7.7]
[1759755566357,104.14,234.18,234.13,3.56409611]
[1759755566558,104.14,234.18,234.14,7.7]
[1759755567252,104.14,234.18,234.14,3.8425]
[1759755567455,104.14,234.18,234.15,7.7]
[1759755567854,104.14,234.18,234.14,7.40659611]
[1759755568054,104.14,234.18,234.15,7.7]
[1759755568556,107.9813,234.22,234.14,15.10659611]
[1759755569861,107.9613,234.22,234.14,15.10659611]
[1759755570455,107.9613,234.22,234.15,3.8424]
[1759755571760,3.8416,234.21,234.14,11.26409611]
[1759755572064,104.12,234.22,234.14,11.26409611]
[1759755572661,107.9614,234.22,234.14,15.10659611]
[1759755576664,3.8416,234.21,234.14,15.10659611]
[1759755577763,3.8416,234.21,234.14,11.26409611]
[1759755577965,3.8418,234.2,234.14,7.7]
[1759755578165,3.8418,234.2,234.14,11.26409611]
[1759755585462,3.8418,234.2,234.15,3.56409611]
[1759755585662,3.8418,234.2,234.16,7.25]
[1759755591370,3.8418,234.2,234.16,7.94]
[1759755591766,3.8418,234.2,234.15,3.56409611]
[1759755591967,3.8418,234.2,234.16,7.94]
[1759755593066,3.8418,234.2,234.15,3.56409611]
[1759755593473,3.8418,234.2,234.16,7.94]
[1759755593875,3.8419,234.19,234.16,7.94]
[1759755595370,3.8419,234.19,234.15,3.56409611]
[1759755595770,3.8419,234.19,234.16,7.94]
[1759755596276,3.8419,234.19,234.15,3.56409611]
[1759755596471,3.8419,234.19,234.16,7.94]
[1759755596875,3.8419,234.19,234.15,3.56409611]
[1759755597272,3.8419,234.19,234.16,7.94]
[1759755597473,3.8419,234.19,234.15,3.56409611]
[1759755598075,3.8419,234.19,234.16,7.94]
[1759755598272,3.8419,234.19,234.15,3.56409611]
[1759755598476,3.8419,234.19,234.16,7.94]
[1759755598880,3.8419,234.19,234.15,3.56409611]
[1759755599074,1.54085124,234.21,234.15,3.56409611]
[1759755599282,1.54085124,234.21,234.12,12.69248332]
[1759755599480,1.54085124,234.21,234.13,3.58245848]
[1759755600273,1.54085124,234.18,234.13,11.52245848]
[1759755600478,104.06,234.17,234.13,7.94]
[1759755600676,3.8424,234.16,234.13,7.94]
[1759755601277,104.06,234.17,234.13,7.94]
[1759755601477,104.06,234.17,234.12,3.58245848]
[1759755601677,104.06,234.17,234.13,7.94]
[1759755601978,104.06,234.17,234.12,3.58245848]
[1759755602180,104.06,234.17,234.13,7.94]
[1759755602378,104.06,234.17,234.12,3.58245848]
[1759755602974,104.06,234.17,234.13,7.94]
[1759755603379,107.9023,234.17,234.14,3.58245848]
[1759755603878,107.9023,234.17,234.14,11.52245848]
[1759755604280,104.06,234.17,234.15,11.52245848]
[1759755604481,1.54085124,234.21,234.17,7.94]
[1759755604781,104.06,234.2,234.18,7.94]
[1759755605170,104.06,234.2,234.17,11.52245848]
[1759755605978,104.06,234.2,234.18,7.94]
[1759755607080,104.06,234.2,234.17,3.58245848]
[1759755607282,104.06,234.2,234.17,11.52245848]
[1759755607674,104.06,234.2,234.18,3.58245848]
[1759755607874,104.06,234.2,234.18,11.52245848]
[1759755608276,104.06,234.2,234.19,7.94]
[1759755608782,104.06,234.2,234.19,11.52245848]
[1759755613179,104.06,234.2,234.19,7.94]
[1759755616582,104.06,234.2,234.17,12.69248332]
[1759755617383,104.06,234.2,234.16,8.59468332]
[1759755617683,104.06,234.2,234.16,10.13553456]
[1759755618283,104.06,234.2,234.19,3.57894377]
[1759755618589,104.06,234.2,234.19,11.33894377]
[1759755618889,3.841,234.25,234.19,7.76]
[1759755619088,3.841,234.25,234.21,3.5779553]
[1759755620693,3.841,234.25,234.19,7.76]
[1759755620694,104.0,234.27,234.22,3.5779553]
[1759755621288,3.8408,234.26,234.22,3.5779553]
[1759755621490,3.8408,234.26,234.21,3.5779553]
[1759755621784,3.8408,234.26,234.22,3.5779553]
[1759755622294,104.0,234.27,234.21,3.5779553]
[1759755622496,5.38125124,234.28,234.21,3.5779553]
[1759755622688,107.8406,234.27,234.21,3.5779553]
[1759755623387,1.54085124,234.25,234.2,3.5779553]
[1759755623595,1.54085124,234.25,234.19,3.5779553]
[1759755624395,1.54085124,234.22,234.19,3.5779553]
[1759755624594,1.54085124,234.22,234.18,3.5779553]
[1759755624595,104.0,234.21,234.18,3.5779553]
[1759755624791,107.8416,234.21,234.17,3.5779553]
[1759755625599,3.8418,234.2,234.17,3.5779553]
[1759755626303,104.0,234.21,234.16,3.5779553]
[1759755626304,3.842,234.18,234.16,3.5779553]
[1759755626505,3.842,234.18,234.15,3.5779553]
[1759755627001,3.8423,234.16,234.15,3.5779553]
[1759755627304,3.8423,234.16,234.13,3.5779553]
[1759755628504,3.8423,234.16,234.12,3.5779553]
[1759755629308,3.8423,234.16,234.12,11.3379553]
[1759755630008,3.8423,234.16,234.13,3.5779553]
[1759755630405,5.38285124,234.18,234.12,11.3379553]
[1759755630907,5.38285124,234.18,234.09,4.75248332]
[1759755630908,5.38285124,234.18,234.14,7.76]
[1759755631807,5.38285124,234.18,234.14,11.3379553]
[1759755632507,109.36285124,234.18,234.14,7.76]
[1759755634710,1.54085124,234.2,234.15,3.5779553]
[1759755634909,91.60085124,234.2,234.15,3.5779553]
[1759755635112,91.60085124,234.2,234.16,7.2]
[1759755637307,3.8418,234.19,234.15,3.5779553]
[1759755637911,3.8418,234.19,234.15,10.7779553]
[1759755639007,3.8421,234.18,234.15,7.2]
[1759755639313,3.8421,234.18,234.14,3.5779553]
[1759755639713,3.8421,234.18,234.14,10.7779553]
[1759755639913,3.8421,234.18,234.15,7.2]
[1759755641616,90.06,234.2,234.14,3.5779553]
[1759755642018,90.06,234.2,234.14,10.7779553]
[1759755644519,90.06,234.2,234.14,10.7752568]
[1759755645319,90.06,234.2,234.15,3.5752568]
[1759755645914,90.06,234.2,234.17,7.2]
[1759755646610,90.06,234.2,234.15,3.5752568]
[1759755646811,90.06,234.2,234.16,7.2]
[1759755647016,90.06,234.2,234.15,3.5752568]
[1759755647217,90.06,234.2,234.16,7.2]
[1759755647521,90.06,234.2,234.15,3.5752568]
[1759755647724,90.06,234.2,234.16,7.2]
[1759755649024,93.9018,234.2,234.16,7.2]
[1759755649618,90.06,234.2,234.15,3.5752568]
[1759755649818,90.06,234.2,234.12,3.5752568]
[1759755650823,3.8424,234.16,234.12,11.5352568]
[1759755651621,3.8424,234.16,234.13,7.96]
[1759755652325,3.8424,234.16,234.12,3.5752568]
[1759755652326,3.8426,234.15,234.12,3.5752568]
[1759755652523,2.40739635,234.18,234.12,3.5752568]
[1759755652723,2.40739635,234.18,234.11,3.5752568]
[1759755656636,3.8426,234.15,234.11,3.5752568]
[1759755656935,3.8426,234.15,234.11,11.5352568]
[1759755657835,3.8426,234.15,234.12,7.96]
[1759755659532,3.8422,234.17,234.13,3.5752568]
[1759755659730,103.94,234.16,234.14,7.96]
[1759755659935,103.94,234.16,234.13,3.5752568]
[1759755660235,103.94,234.16,234.14,7.96]
[1759755661429,107.7825,234.16,234.13,3.5752568]
[1759755661631,107.7825,234.16,234.12,3.5752568]
[1759755661832,107.7825,234.16,234.12,11.5352568]
[1759755662038,107.7825,234.16,234.13,7.96]
[1759755663041,3.8426,234.15,234.11,3.5752568]
[1759755663836,3.8426,234.15,234.11,11.5352568]
[1759755664238,3.8426,234.15,234.12,3.5752568]
[1759755665339,3.8426,234.15,234.13,3.5752568]
[1759755666941,3.8426,234.15,234.07,10.96914736]
[1759755666942,3.8428,234.13,234.12,3.5752568]
[1759755667142,3.8428,234.13,234.11,3.5752568]
[1759755667342,103.94,234.16,234.1,3.5752568]
[1759755669341,103.94,234.16,234.11,3.5752568]
[1759755670044,3.843,234.13,234.11,11.5352568]
[1759755670344,3.843,234.13,234.11,7.96]
[1759755670640,3.8425,234.15,234.12,3.5752568]
[1759755671043,3.8425,234.15,234.13,11.5352568]
[1759755671245,103.92,234.14,234.13,11.5352568]
[1759755671743,103.92,234.14,234.13,3.5752568]
[1759755676943,3.8425,234.15,234.13,3.5752568]
[1759755677245,103.92,234.14,234.13,3.5752568]
[1759755679546,3.8428,234.13,234.12,3.5752568]
[1759755682551,3.8428,234.13,234.12,3.58256065]
[1759755682748,3.8428,234.13,234.11,3.58256065]
[1759755687350,3.8428,234.13,234.12,3.58256065]
[1759755690556,3.8428,234.13,234.12,11.33256065]
[1759755694058,3.8428,234.13,234.12,7.75]
[1759755697556,103.92,234.14,234.11,7.51]
[1759755697753,3.8426,234.15,234.12,7.51]
[1759755697954,103.88,234.14,234.13,7.51]
[1759755698455,3.8428,234.13,234.12,7.51]
[1759755699157,103.88,234.14,234.11,7.51]
[1759755699460,103.88,234.14,234.13,7.51]
[1759755700953,103.88,234.15,234.13,7.51]
[1759755701153,103.88,234.15,234.13,12.26248332]
[1759755701458,103.88,234.15,234.14,7.51]
[1759755710864,107.7226,234.15,234.13,4.75248332]
[1759755711067,107.7226,234.15,234.05,3.844]
[1759755711068,103.88,234.15,234.12,4.75248332]
[1759755711468,3.8427,234.14,234.13,7.32]
[1759755711763,103.88,234.15,234.14,7.32]
[1759755712363,103.88,234.15,234.13,4.75248332]
[1759755712661,103.88,234.15,234.13,12.07248332]
[1759755712865,107.7226,234.15,234.13,12.07248332]
[1759755713764,107.7226,234.15,234.13,4.75248332]
[1759755714064,3.8428,234.13,234.11,4.75248332]
[1759755714869,103.88,234.15,234.08,4.75248332]
[1759755714870,3.8431,234.11,234.08,4.75248332]
[1759755715666,3.8434,234.1,234.08,4.75248332]
[1759755716263,3.8434,234.1,234.07,12.07248332]
[1759755716571,3.8434,234.1,234.08,7.32]
[1759755718169,3.8434,234.1,234.09,3.59098262]
[1759755718767,107.6834,234.1,234.09,3.59098262]
[1759755719070,107.6834,234.1,234.08,3.59098262]
[1759755719369,3.8436,234.08,234.07,3.59098262]
[1759755720970,3.8436,234.08,233.99,7.32]
[1759755720971,3.8436,234.08,234.06,8.262e-05]
[1759755721167,3.8444,234.04,234.02,4.75248332]
[1759755721469,107.6644,234.04,234.02,4.75248332]
[1759755722265,107.6644,234.04,234.02,8.332e-05]
[1759755722576,3.8448,234.01,233.95,7.32]
[1759755722778,1.54109197,234.05,233.96,7.32]
[1759755723075,3.8446,234.02,233.96,7.32]
[1759755723871,103.84,234.04,233.96,7.32]
[1759755724173,103.84,234.1,234.02,7.32]
[1759755725875,3.8437,234.08,234.02,7.32]
[1759755726073,103.84,234.1,234.02,7.32]
[1759755726473,103.84,234.09,234.02,7.32]
[1759755727677,3.8439,234.07,234.02,7.32]
[1759755728673,3.8439,234.07,233.98,1.54109197]
[1759755728882,3.8439,234.07,233.99,7.32]
[1759755730482,3.8441,234.06,233.99,7.32]
[1759755730885,1.54109197,234.07,233.99,7.32]
[1759755731581,3.8442,234.05,233.99,7.32]
[1759755731781,103.84,234.04,233.97,7.32]
[1759755732182,3.8446,234.03,233.97,7.32]
[1759755734181,3.8447,234.02,233.96,7.32]
[1759755734984,1.54109197,234.03,233.92,7.12544736]
[1759755735184,61.35369197,234.0,233.91,7.32]
[1759755735393,103.84,233.99,233.91,7.32]
[1759755736683,3.8459,233.95,233.87,7.32]
[1759755736890,103.84,233.94,233.87,7.32]
[1759755737387,107.6861,233.94,233.87,7.32]
[1759755739086,3.8463,233.92,233.87,7.32]
[1759755740689,5.38769197,233.91,233.8,7.5]
[1759755741293,3.8459,233.95,233.82,1.54109197]
[1759755741491,3.8459,233.95,233.83,7.5]
[1759755741492,8.68,233.94,233.83,7.5]
[1759755742289,8.68,233.94,233.77,72.51347072]
[1759755742290,8.68,233.94,233.84,1.54109197]
[1759755742497,8.68,233.94,233.85,7.5]
[1759755743291,8.68,233.94,233.85,11.3474]
[1759755743495,5.38699197,233.95,233.86,7.5]
[1759755743797,19.5,233.94,233.86,7.5]
[1759755746595,54.88699197,233.95,233.86,3.8471]
[1759755746797,54.88699197,233.95,233.87,7.5]
[1759755753089,53.3459,233.95,233.87,7.5]
[1759755753393,3.8459,233.95,233.87,7.5]
[1759755755196,59.7922,234.08,233.91,7.43]
[1759755755197,1.54109197,234.03,233.91,7.43]
[1759755755398,34.66304123,234.01,233.91,7.43]
[1759755755594,38.50794123,234.01,233.91,7.43]
[1759755756300,14.44794123,234.01,233.91,7.43]
[1759755756699,14.44794123,234.01,233.93,7.43]
[1759755757001,14.44794123,234.01,233.93,8.97109197]
[1759755757203,14.44794123,234.01,233.93,7.43]
[1759755761695,10.60304123,234.01,233.95,7.43]
[1759755773214,14.44794123,234.01,233.95,7.43]
[1759755774314,3.8451,234.0,233.91,3.8463]
[1759755774519,3.8451,234.0,233.92,7.73]
[1759755777020,10.60304123,234.01,233.92,7.73]
[1759755777615,3.8454,233.97,233.92,7.73]
[1759755778022,3.8454,233.97,233.91,7.73]
[1759755780519,3.8454,233.97,233.91,4.7450098]
[1759755780920,3.8454,233.97,233.95,7.73]
[1759755782022,59.8142,233.99,233.93,3.58268027]
[1759755782324,59.8142,233.99,233.92,3.58268027]
[1759755783226,3.06911612,233.98,233.91,3.58268027]
[1759755783521,103.84,233.97,233.89,3.58268027]
[1759755784229,3.8462,233.93,233.89,3.58268027]
[1759755785230,3.8458,233.95,233.89,11.31268027]
[1759755785728,3.846,233.94,233.89,3.58268027]
[1759755787127,103.84,233.97,233.88,3.58268027]
[1759755788530,103.84,233.97,233.89,3.58268027]
[1759755788724,3.8462,233.93,233.89,11.31268027]
[1759755788930,103.84,233.95,233.9,7.73]
[1759755789226,103.84,233.95,233.89,3.58268027]
[1759755789418,10.60304123,234.01,233.9,7.73]
[1759755789619,10.60304123,234.01,233.91,3.58268027]
[1759755789817,10.60304123,234.01,233.95,7.73]
[1759755790226,10.60304123,234.01,233.95,11.31268027]
[1759755790823,10.60304123,234.01,233.95,3.58268027]
[1759755791026,3.8437,234.08,233.99,7.73]
[1759755791231,45.3,234.07,234.0,3.58268027]
[1759755791426,45.3,234.07,233.99,11.31268027]
[1759755791622,45.3,234.07,234.0,3.58268027]
[1759755791827,3.8443,234.05,233.99,11.31268027]
[1759755792029,3.8443,234.05,234.0,11.31268027]
[1759755792328,3.8443,234.05,234.01,7.73]
[1759755793129,45.3,234.07,234.0,3.58268027]
[1759755793428,45.3,234.07,233.98,3.58268027]
[1759755794735,3.8446,234.03,233.98,11.31268027]
[1759755795125,3.8446,234.03,233.98,3.58268027]
[1759755795434,3.8446,234.03,233.99,11.31268027]
[1759755795632,59.7966,234.06,233.98,3.58268027]
[1759755795931,3.06911612,234.03,233.97,3.58268027]
[1759755796134,3.8454,233.97,233.95,3.58268027]
[1759755796335,106.88911612,233.99,233.94,3.58268027]
[1759755797340,3.8456,233.97,233.94,3.58268027]
[1759755797543,3.8456,233.97,233.93,3.58268027]
[1759755798236,3.8458,233.96,233.94,3.58268027]
[1759755798539,106.88911612,233.99,233.93,3.58268027]
[1759755799529,3.8459,233.94,233.93,3.58268027]
[1759755802535,59.8022,234.04,233.93,3.58268027]
[1759755802536,3.06911612,234.07,233.94,7.7]
[1759755802835,15.86,234.06,233.98,3.58465793]
[1759755803541,3.8443,234.04,233.98,3.58465793]
[1759755804640,3.8446,234.02,233.98,3.58465793]
[1759755804940,3.06911612,234.07,233.99,7.7]
[1759755805136,103.92,234.06,233.99,11.28465793]
[1759755806139,59.789,234.09,233.99,11.28465793]
[1759755806337,59.7848,234.11,234.0,3.58465793]
[1759755806338,3.8442,234.05,234.0,3.58465793]
[1759755806539,3.8442,234.05,234.01,7.7]
[1759755806845,3.8442,234.05,234.0,3.58465793]
[1759755807047,3.8442,234.05,234.01,7.7]
[1759755807537,3.8442,234.05,234.0,3.58465793]
[1759755807740,3.8442,234.05,234.01,7.7]
[1759755808142,3.8442,234.05,233.99,3.58465793]
[1759755808346,239.0582,234.19,0.001,50000.0]
[1759755808347,3.8434,234.1,234.04,3.58465793]
[1759755808540,103.96,234.09,234.05,7.7]
[1759755808742,103.96,234.09,234.04,3.58465793]
[1759755809143,103.96,234.09,234.05,7.7]
[1759755809347,103.96,234.09,234.04,3.58465793]
[1759755809551,107.8035,234.09,234.04,3.58465793]
[1759755809743,107.8035,234.09,234.05,7.7]
[1759755810344,103.96,234.09,234.04,3.58465793]
[1759755810845,103.96,234.09,234.06,7.7]
[1759755812550,107.8036,234.09,234.06,7.7]
[1759755812846,107.8036,234.09,234.05,3.58465793]
[1759755813052,107.8036,234.09,234.06,7.7]
[1759755815051,107.8036,234.09,234.06,7.28]
[1759755815254,103.96,234.09,234.05,3.58465793]
[1759755815460,59.7638,234.19,233.96,59.8202]
[1759755815461,59.7588,234.21,234.06,3.58465793]
[1759755815650,103.94,234.18,234.1,7.28]
[1759755815850,3.8422,234.17,234.1,7.28]
[1759755818257,103.94,234.19,234.1,7.28]
[1759755819357,3.8423,234.16,234.1,7.28]
[1759755819551,103.94,234.19,234.1,7.28]
[1759755819758,163.7035,234.19,234.1,7.28]
[1759755821553,3.8426,234.15,234.1,7.28]
[1759755821858,3.8426,234.15,234.08,7.28]
[1759755823666,3.8428,234.14,234.08,7.28]
[1759755824465,3.8431,234.12,234.08,7.28]
[1759755824668,3.8431,234.12,234.06,7.28]
[1759755824963,59.7663,234.18,234.06,7.28]
[1759755825153,163.7035,234.19,233.87,188.89641972]
[1759755825154,59.7734,234.15,234.03,10.86465793]
[1759755825353,3.06911612,234.16,234.03,10.86465793]
[1759755825354,59.7782,234.13,234.03,10.86465793]
[1759755825557,59.7843,234.11,234.03,7.28]
[1759755825756,59.7857,234.1,234.0,3.58465793]
[1759755825962,59.7857,234.1,233.99,7.28]
[1759755827567,3.8443,234.05,233.99,7.28]
[1759755828269,3.8446,234.03,233.99,10.86465793]
[1759755828465,3.8446,234.03,233.96,3.58465793]
[1759755828663,3.8446,234.03,233.95,11.00465793]
[1759755829365,3.8446,234.03,233.96,3.58465793]
[1759755833366,3.8446,234.03,233.97,3.58465793]
[1759755833571,105.94384166,234.05,233.97,11.00465793]
[1759755834666,3.8443,234.04,233.97,11.00465793]
[1759755835362,3.8443,234.04,233.98,3.58465793]
[1759755835771,5.80814166,234.04,233.98,3.58465793]
[1759755836576,3.8446,234.03,233.97,11.00465793]
[1759755836872,1.96384166,234.04,233.97,11.00465793]
[1759755837372,1.96384166,234.04,233.97,7.42]
[1759755837573,3.8448,234.01,233.96,3.58465793]
[1759755837774,3.8448,234.01,233.97,7.42]
[1759755839772,3.8448,234.01,233.96,3.58465793]
[1759755840173,3.8448,234.01,233.97,7.42]
[1759755840882,3.8448,234.01,233.96,3.58465793]
[1759755841174,3.8448,234.01,233.97,7.42]
[1759755841377,3.8448,234.01,233.96,3.58465793]
[1759755841586,3.8448,234.01,233.97,7.42]
[1759755841772,3.8448,234.01,233.96,3.58465793]
[1759755842075,3.8448,234.01,233.98,7.42]
[1759755842278,3.8448,234.01,233.95,3.58465793]
[1759755842279,1.96384166,234.01,233.95,3.58465793]
[1759755842775,1.96384166,233.98,233.95,3.58465793]